bitfinex-derivatives/quotes_SOLF0:USTF0_20260102
["timestamp","ask_amount","ask_price","bid_price","bid_amount"]
[1767338910016,0.05475913,127.21,127.19,0.04981803]
[1767338924329,7.13965913,127.21,127.19,0.04981803]
[1767338924628,7.38604693,127.21,127.16,0.32183427]
[1767338925428,7.38604693,127.21,127.17,0.05382824]
[1767338926531,0.2463878,127.2,127.14,0.32183427]
[1767338927626,0.05253686,127.18,127.16,0.05304132]
[1767338928532,0.05253686,127.18,127.16,0.37487559]
[1767338930133,0.2463878,127.2,127.16,0.37487559]
[1767338930635,7.0849,127.21,127.16,0.37487559]
[1767338930933,7.3312878,127.21,127.16,0.37487559]
[1767338931233,0.29836746,127.2,127.16,0.37487559]
[1767338937848,0.29836746,127.2,127.16,0.05304132]
[1767338938048,0.29836746,127.2,127.14,0.32179259]
[1767338938247,93.23836746,127.2,127.14,0.32179259]
[1767338939048,93.23836746,127.2,127.16,0.05846099]
[1767338943251,0.24641426,127.19,127.16,0.05846099]
[1767338948259,92.99197966,127.2,127.16,0.05846099]
[1767338948563,93.23839392,127.2,127.16,0.05846099]
[1767338954467,94.77932633,127.2,127.16,0.05846099]
[1767338955167,94.53291207,127.2,127.16,0.38025358]
[1767338956366,92.99197966,127.2,127.16,0.38025358]
[1767338958067,0.05197966,127.2,127.16,0.38025358]
[1767338964066,1.54093241,127.19,127.16,0.05846099]
[1767338964465,1.83932633,127.2,127.16,0.05846099]
[1767338965167,1.83932633,127.2,127.16,0.39956441]
[1767338965168,92.99197966,127.2,127.16,0.39956441]
[1767338968069,94.53291207,127.2,127.16,0.39956441]
[1767338968973,94.77919132,127.2,127.16,0.05846099]
[1767338973574,1.54093241,127.18,127.12,0.31882172]
[1767338973774,92.94,127.17,127.12,0.31882172]
[1767338974670,0.05958497,127.16,127.13,0.05372829]
[1767338975276,0.18781826,127.18,127.13,0.37255001]
[1767338975577,92.94,127.19,127.13,0.37255001]
[1767338976276,0.05429833,127.17,127.13,0.37255001]
[1767338976477,94.66875067,127.2,127.13,0.37255001]
[1767338977376,0.05427015,127.18,127.13,7.14252829]
[1767338977680,0.05427015,127.18,127.14,0.31882172]
[1767338996991,0.24218979,127.24,127.14,0.31882172]
[1767338997286,0.24218979,127.23,127.17,0.32850618]
[1767338997492,1.54093241,127.2,127.17,0.32850618]
[1767338997692,1.54093241,127.19,127.15,0.32850618]
[1767338998095,0.05831357,127.18,127.16,0.05671712]
[1767339001398,1.54093241,127.2,127.16,0.05671712]
[1767339002205,0.05805222,127.19,127.16,0.05671712]
[1767339005204,0.05805222,127.19,127.16,0.3852233]
[1767339005702,1.54093241,127.22,127.16,0.3852233]
[1767339005899,0.24218979,127.23,127.17,0.32850618]
[1767339006610,0.05812591,127.21,127.19,0.05923904]
[1767339014012,0.24218979,127.23,127.19,0.05923904]
[1767339015011,0.05425497,127.22,127.19,0.05923904]
[1767339033028,0.29643202,127.22,127.19,0.05923904]
[1767339063154,0.05425497,127.22,127.19,0.05923904]
[1767339072265,0.29660706,127.22,127.19,0.05923904]
[1767339072460,0.29660706,127.22,127.16,0.31682155]
[1767339072669,0.29660706,127.22,127.14,2.40622343]
[1767339072670,0.24235209,127.22,127.14,0.31682155]
[1767339072959,0.24235209,127.19,127.12,2.72304498]
[1767339073363,0.24235209,127.19,127.13,0.31682155]
[1767339073554,0.05156599,127.17,127.15,0.0574434]
[1767339078166,0.24235209,127.16,127.09,0.31682155]
[1767339078357,0.24235209,127.16,127.09,1.85784587]
[1767339078558,1.78337641,127.16,127.1,0.31682155]
[1767339079168,0.0588092,127.14,127.12,0.04958275]
[1767339086265,0.13538582,127.13,127.08,9.63561775]
[1767339086468,0.13538582,127.13,127.08,9.31393702]
[1767339087463,0.13538582,127.13,127.09,0.05009516]
[1767339090674,1.67641014,127.12,127.08,7.91546598]
[1767339090879,1.54102432,127.1,127.02,1.86270505]
[1767339091079,94.52102432,127.12,127.05,0.32168073]
[1767339091267,1.54102432,127.1,127.05,0.32168073]
[1767339091668,0.05068312,127.09,127.03,0.32168073]
[1767339091868,0.05068312,127.09,127.06,0.05684255]
[1767339093782,1.54102432,127.08,127.01,0.32168073]
[1767339094273,1.54102432,127.06,127.01,0.32168073]
[1767339094483,1.54102432,127.06,126.99,0.32168073]
[1767339094675,0.05218133,127.04,127.01,0.05864605]
[1767339095775,1.54102432,127.07,127.01,0.05864605]
[1767339096279,100.0922,127.08,127.01,0.05864605]
[1767339096481,1.54102432,127.06,127.01,0.05864605]
[1767339096784,0.05782902,127.05,127.01,0.05864605]
[1767339104087,0.05782902,127.05,127.01,0.38032678]
[1767339105191,93.02,127.08,127.02,1.86270505]
[1767339105688,1.54102432,127.09,127.02,1.86270505]
[1767339105889,94.58102432,127.09,127.02,1.86270505]
[1767339106289,0.05770866,127.07,127.04,0.05775668]
[1767339112497,1.54102432,127.06,126.99,0.32168073]
[1767339112697,203.3525,127.09,126.99,0.32168073]
[1767339113198,1.54102432,127.08,127.02,0.32168073]
[1767339113696,0.05957728,127.06,127.04,0.0529925]
[1767339114392,0.05957728,127.06,127.02,0.32168073]
[1767339115402,0.05957728,127.06,127.03,0.05344483]
[1767339115588,93.09957728,127.06,127.0,0.32168073]
[1767339115793,94.6406016,127.06,127.0,0.32168073]
[1767339116606,94.6406016,127.06,127.02,0.05482742]
[1767339119704,93.09957728,127.06,127.02,0.05482742]
[1767339120306,0.05957728,127.06,127.02,0.05482742]
[1767339120509,93.09957728,127.06,127.02,0.05482742]
[1767339120695,0.05957728,127.06,127.02,0.05482742]
[1767339120900,93.04,127.05,127.02,0.05482742]
[1767339125007,93.11957728,127.06,127.02,0.37958189]
[1767339125410,0.05957728,127.06,127.02,0.37958189]
[1767339128510,0.05957728,127.06,127.02,0.05482742]
[1767339129614,0.05957728,127.06,127.02,0.37958189]
[1767339136815,0.05957728,127.06,127.02,0.05482742]
[1767339137218,93.06,127.05,127.02,0.05482742]
[1767339138122,0.05957728,127.06,127.02,0.05482742]
[1767339138313,93.11957728,127.06,127.02,0.05482742]
[1767339140728,93.11957728,127.06,127.02,0.37958189]
[1767339141830,93.11957728,127.06,127.02,0.05482742]
[1767339156743,0.05957728,127.06,127.02,0.05482742]
[1767339156937,93.06,127.05,127.02,0.05482742]
[1767339178960,100.1537,127.05,127.02,0.05482742]
[1767339180362,100.1537,127.05,126.98,0.32512245]
[1767339180562,102.56612742,127.05,126.98,0.32512245]
[1767339180860,93.06,127.04,126.98,0.32512245]
[1767339181463,0.05006079,127.02,127.0,0.05549381]
[1767339189773,0.05006079,127.02,126.96,274.28148209]
[1767339190275,0.05006079,127.02,126.97,0.32512245]
[1767339190873,0.05006079,127.02,126.98,0.05721985]
[1767339193875,0.05006079,127.02,126.98,0.3823423]
[1767339197071,0.05006079,127.02,126.98,0.05721985]
[1767339197072,1.5449693,127.01,126.98,0.05721985]
[1767339197272,1.5449693,127.0,126.95,0.32512245]
[1767339198176,0.05646879,126.99,126.96,0.05950154]
[1767339200578,1.60143809,126.99,126.96,0.05950154]
[1767339201178,1.60143809,126.99,126.93,0.32512245]
[1767339201979,1.60143809,126.99,126.95,0.05385013]
[1767339203168,1.5449693,126.97,126.93,0.32512245]
[1767339204176,0.05944284,126.96,126.93,0.32512245]
[1767339206085,1.5449693,126.99,126.93,0.32512245]
[1767339206892,93.08,127.03,126.94,0.58504897]
[1767339207089,1.5449693,127.01,126.94,0.58504897]
[1767339207295,0.05487691,127.0,126.97,0.05427847]
[1767339208295,1.59984621,127.0,126.97,0.05427847]
[1767339209994,0.05487691,127.0,126.97,0.05427847]
[1767339210193,1.59984621,127.0,126.97,0.05427847]
[1767339210996,0.05487691,127.0,126.97,0.05427847]
[1767339211298,94.6249693,127.03,126.97,0.63932744]
[1767339211699,110.3336,127.07,126.97,0.63932744]
[1767339211997,1.5449693,127.03,126.97,0.58504897]
[1767339212187,0.05026991,127.01,126.99,0.05814463]
[1767339216799,1.5449693,127.03,126.99,0.05814463]
[1767339217700,0.04983649,127.02,126.99,0.05814463]
[1767339225102,0.04983649,127.02,126.99,0.6431936]
[1767339236116,8.6386693,127.05,126.99,0.6431936]
[1767339236914,0.05043996,127.03,126.99,0.6431936]
[1767339239906,1.5449693,127.06,126.99,0.6431936]
[1767339240817,0.05493259,127.04,126.99,0.6431936]
[1767339241517,0.05493259,127.04,127.0,1.05367539]
[1767339244218,0.05493259,127.04,127.01,1.05367539]
[1767339244414,1.5449693,127.07,127.01,1.05367539]
[1767339245318,0.05649708,127.05,127.03,0.05861921]
[1767339261530,0.38480719,127.05,127.0,8.14987539]
[1767339262432,0.38480719,127.05,127.01,0.05595983]
[1767339264234,0.05649708,127.05,127.01,1.10963522]
[1767339277740,0.62557338,127.09,127.02,1.35559717]
[1767339278740,0.05119302,127.07,127.04,1.40837852]
[1767339282055,0.69823264,127.13,127.06,1.35559717]
[1767339282757,0.74942566,127.12,127.06,1.35559717]
[1767339283156,0.05155088,127.1,127.08,0.05789075]
[1767339285856,0.05155088,127.1,127.06,1.35559717]
[1767339286759,0.05155088,127.1,127.07,0.05232353]
[1767339288053,0.88347,127.1,127.07,0.05232353]
[1767339288354,0.88347,127.1,127.02,8.45049717]
[1767339288556,0.83191912,127.1,127.02,8.45049717]
[1767339288757,0.83191912,127.1,127.03,1.35559717]
[1767339289156,0.0603447,127.08,127.05,0.05455149]
[1767339294358,0.96926266,127.08,127.01,1.35559717]
[1767339294659,0.90891796,127.08,127.01,1.35559717]
[1767339295462,0.05399908,127.06,127.03,0.05647671]
[1767339304360,0.05399908,127.06,127.03,1.60058886]
[1767339304565,1.03693917,127.09,127.03,1.60058886]
[1767339305466,0.0537687,127.07,127.03,1.60058886]
[1767339337493,7.091,127.1,127.04,1.69428845]
[1767339338294,0.05599703,127.08,127.06,1.74857688]
[1767339340389,0.05599703,127.08,127.06,0.05428843]
[1767339349608,1.54370297,127.07,127.0,1.69428845]
[1767339350604,0.05560764,127.05,127.02,1.75169418]
[1767339357617,1.59931061,127.05,126.98,1.54370297]
[1767339357814,1.54370297,127.05,126.98,1.54370297]
[1767339358119,8.63740297,127.05,126.98,1.54370297]
[1767339358520,0.05511117,127.03,127.0,0.05049092]
[1767339359515,0.05511117,127.03,127.01,1.84813284]
[1767339359821,7.0937,127.05,127.01,1.84813284]
[1767339360721,0.05685636,127.04,127.01,1.84813284]
[1767339370427,7.15105636,127.04,127.01,1.84813284]
[1767339370729,7.15105636,127.04,127.0,0.05049092]
[1767339371428,1.79135661,127.03,127.0,0.05049092]
[1767339371729,1.79135661,127.03,126.97,1.84813284]
[1767339372128,7.0942,127.04,126.98,1.84813284]
[1767339372531,0.05388302,127.02,127.0,0.05523194]
[1767339374932,8.88515661,127.05,127.0,1.90336478]
[1767339375936,0.05988599,127.04,127.0,1.90336478]
[1767339378736,8.9454426,127.04,127.0,0.05523194]
[1767339392449,1.90059268,127.03,127.0,0.05523194]
[1767339392648,1.90059268,127.03,126.96,1.87711438]
[1767339393654,0.05289128,127.01,126.98,1.93499766]
[1767339402564,0.05289128,127.01,126.98,0.05788328]
[1767339403358,1.95348396,127.01,126.98,0.05788328]
[1767339403562,1.95348396,127.01,126.95,11.34663325]
[1767339404468,1.95348396,127.01,126.97,0.06012754]
[1767339404870,9.04958396,127.01,126.97,0.06012754]
[1767339411579,1.95348396,127.01,126.97,0.06012754]
[1767339419289,1.95348396,127.01,126.97,2.0361308]
[1767339419481,0.05289128,127.01,126.97,2.0361308]
[1767339424388,0.05289128,127.01,126.97,9.1339308]
[1767339424593,97.53364782,127.05,126.98,1.97600326]
[1767339424785,95.12004118,127.05,126.98,1.97600326]
[1767339424984,2.02004118,127.04,126.98,1.97600326]
[1767339425494,0.05006628,127.02,127.0,0.0507005]
[1767339426685,93.1,127.05,127.0,2.02670376]
[1767339427092,2.02004118,127.06,127.0,2.02670376]
[1767339427594,0.05100421,127.04,127.0,2.02670376]
[1767339444596,2.02004118,127.02,126.97,1.97600326]
[1767339445200,1.5444416,127.03,126.97,1.97600326]
[1767339445496,102.32094472,127.04,126.97,1.97600326]
[1767339445497,95.22664472,127.04,126.97,1.97600326]
[1767339445700,95.22664472,127.04,126.96,1.5444416]
[1767339445701,0.05053034,127.02,126.99,2.13503123]
[1767339446989,1.5444416,127.05,126.99,2.13503123]
[1767339447998,0.05700205,127.03,126.99,2.13503123]
[1767339449801,1.98847877,127.06,127.0,1.97138746]
[1767339450800,0.04959973,127.04,127.02,0.04947793]
[1767339480830,0.04959973,127.04,126.99,2.0895919]
[1767339481023,3.70447133,127.04,126.95,93.06]
[1767339481227,2.16002973,127.03,126.95,94.6044416]
[1767339481629,0.05478749,127.0,126.98,0.05112206]
[1767339487036,2.21481722,127.0,126.95,2.0895919]
[1767339487932,2.21481722,127.0,126.96,0.05471143]
[1767339492735,3.75925882,127.0,126.96,0.05471143]
[1767339493442,2.21481722,127.0,126.96,0.05471143]
[1767339494549,9.31061722,127.0,126.96,0.05471143]
[1767339494846,10.85505882,127.0,126.96,0.05471143]
[1767339495446,2.16002973,126.99,126.96,0.05471143]
[1767339499449,9.25642973,126.99,126.96,0.05471143]
[1767339499656,2.16002973,126.98,126.92,269.65408826]
[1767339500153,7.0975,126.97,126.92,269.65408826]
[1767339500549,0.04958577,126.96,126.93,0.05180613]
[1767339502956,2.16002973,126.98,126.93,2.14139803]
[1767339503160,2.16002973,127.0,126.93,2.14139803]
[1767339503353,2.16002973,127.0,126.93,2.0895919]
[1767339503954,2.16002973,127.0,126.95,0.06035194]
[1767339504159,0.05880514,126.98,126.95,0.06035194]
[1767339511266,7.0953,127.01,126.95,2.11123782]
[1767339511570,9.26897136,127.01,126.95,2.11123782]
[1767339512468,0.05201557,126.99,126.95,2.11123782]
[1767339521484,2.17367136,127.01,126.96,2.05088588]
[1767339522285,0.04981053,127.0,126.96,2.05088588]
[1767339523787,9.26777136,127.03,126.96,2.05088588]
[1767339524484,2.17367136,127.02,126.96,2.05088588]
[1767339524682,0.05326038,127.0,126.98,0.05633106]
[1767339535889,2.16649922,127.0,126.98,0.05633106]
[1767339536090,2.16649922,127.0,126.95,9.19659074]
[1767339536794,2.16649922,127.0,126.96,2.09849074]
[1767339536994,2.16649922,127.0,126.97,0.06041888]
[1767339538092,0.05326038,127.0,126.97,0.06041888]
[1767339550606,0.05326038,127.0,126.97,2.15890962]
[1767339552103,2.11323884,127.02,126.97,2.15890962]
[1767339553210,0.05652459,127.01,126.97,2.15890962]
[1767339553908,0.05652459,127.01,126.97,9.25600962]
[1767339556016,0.05652459,127.01,126.98,2.09849074]
[1767339556307,2.11323884,127.04,126.98,2.09849074]
[1767339557113,0.05182849,127.02,127.0,0.05155288]
[1767339573919,2.11323884,127.04,127.0,2.06329069]
[1767339574221,1.54479499,127.05,127.0,2.06329069]
[1767339574624,3.48864354,127.05,127.0,2.06329069]
[1767339574925,0.05469889,127.04,127.0,2.06329069]
[1767339575634,1.99854744,127.04,127.0,0.05155288]
[1767339621667,1.99854744,127.04,127.0,1.59634787]
[1767339622266,1.99854744,127.04,127.0,0.05155288]
[1767339648393,9.09214744,127.04,126.97,259.52265022]
[1767339648593,1.78670798,127.03,126.97,259.52265022]
[1767339649394,1.84706681,127.01,126.99,0.05491507]
[1767339651195,1.84706681,127.01,126.97,259.52265022]
[1767339652297,1.84706681,127.01,126.98,0.0543393]
[1767339655601,1.84706681,127.01,126.97,259.52265022]
[1767339656601,1.84706681,127.01,126.98,0.0573555]
[1767339660402,1.84706681,127.01,126.97,259.52265022]
[1767339660606,1.84706681,127.01,126.97,257.69785025]
[1767339660901,1.84706681,127.01,126.96,8.76683508]
[1767339661506,1.84706681,127.01,126.97,0.0511859]
[1767339673617,1.84706681,127.01,126.96,8.76683508]
[1767339674621,1.84706681,127.01,126.97,0.05465809]
[1767339674923,1.72021026,127.0,126.96,8.76683508]
[1767339676915,1.72021026,127.0,126.97,0.05431877]
[1767339677115,1.72021026,127.0,126.96,8.76683508]
[1767339677433,1.72021026,127.0,126.96,5.49533578]
[1767339677631,1.72021026,127.0,126.92,8.77133438]
[1767339677828,1.72021026,127.0,126.93,1.67153438]
[1767339678018,0.05986483,126.98,126.95,0.02888834]
[1767339688936,94.62583199,127.01,126.95,1.38835826]
[1767339689438,94.62583199,127.01,126.95,2.93419025]
[1767339689836,0.05081123,126.99,126.95,2.93419025]
[1767339693349,0.05081123,126.99,126.95,1.38835826]
[1767339709661,0.05081123,126.99,126.95,0.02888834]
[1767339710756,7.14721123,126.99,126.95,0.02888834]
[1767339710953,8.69304322,126.99,126.95,0.02888834]
[1767339716263,7.0969,126.98,126.95,0.02888834]
[1767339719172,8.64273199,126.98,126.95,0.02888834]
[1767339725375,7.0969,126.98,126.95,0.02888834]
[1767339738788,7.0969,126.98,126.91,261.65915411]
[1767339739085,7.0969,126.98,126.92,1.02967442]
[1767339739879,0.05172976,126.96,126.94,0.05986483]
[1767339751398,0.05172976,126.96,126.92,1.02967442]
[1767339751607,0.05172976,126.96,126.91,259.0836477]
[1767339751903,0.05172976,126.96,126.92,0.71827003]
[1767339756199,93.17172976,126.96,126.92,0.71827003]
[1767339758309,93.17172976,126.96,126.91,8.64242079]
[1767339758709,93.17172976,126.96,126.91,9.36069082]
[1767339759305,100.26972976,126.96,126.91,0.71827003]
[1767339759605,93.12,126.95,126.91,0.71827003]
[1767339776318,93.14,126.99,126.91,0.71827003]
[1767339776918,7.0961,127.0,126.91,0.71827003]
[1767339777118,100.2364,126.99,126.91,7.81877003]
[1767339777319,0.05565299,126.96,126.94,0.05172976]
[1767339778017,0.05565299,126.96,126.91,0.71827003]
[1767339786819,0.05565299,126.96,126.9,0.02]
[1767339789028,0.05565299,126.96,126.9,0.58459379]
[1767339799540,0.05565299,126.96,126.9,0.56459379]
[1767339806544,1.60266187,126.96,126.9,0.56459379]
[1767339809747,0.05565299,126.96,126.9,0.56459379]
[1767339809948,1.60266187,126.96,126.9,0.56459379]
[1767339813153,0.05565299,126.96,126.9,0.56459379]
[1767339821168,0.05565299,126.96,126.91,0.53818536]
[1767339830963,100.2364,126.99,126.92,1.54700888]
[1767339831165,100.2364,126.99,126.93,0.53818536]
[1767339831969,0.05008289,126.97,126.95,0.05442182]
[1767339851690,1.59709177,126.97,126.92,7.55513163]
[1767339852296,1.59709177,126.97,126.93,0.45513163]
[1767339858300,0.05008289,126.97,126.93,0.45513163]
[1767339858492,1.59709177,126.97,126.93,0.45513163]
[1767339864111,0.05008289,126.97,126.93,0.45513163]
[1767339880429,0.05008289,126.97,126.91,0.4394959]
[1767339880630,0.05432389,126.95,126.91,0.4394959]
[1767339880826,7.0965,126.99,126.91,0.4394959]
[1767339881932,0.05080419,126.96,126.94,0.05555506]
[1767339884428,0.05080419,126.96,126.94,0.49505096]
[1767339884632,7.0965,126.99,126.94,0.49505096]
[1767339885537,0.05154332,126.98,126.94,0.49505096]
[1767339893440,93.14,127.02,126.94,0.49505096]
[1767339893639,93.14,127.02,126.94,0.4394959]
[1767339894334,0.0602214,126.99,126.94,0.4394959]
[1767339894542,0.0602214,126.99,126.97,0.05210656]
[1767339895540,0.00849164,126.99,126.97,0.05210656]
[1767339897643,0.00849164,126.99,126.97,0.44058571]
[1767339900650,2.41616832,127.04,126.97,0.44058571]
[1767339900945,7.0932,127.05,126.97,0.44058571]
[1767339901139,7.0932,127.05,126.97,0.38847915]
[1767339901645,0.0550028,127.02,127.0,0.05177409]
[1767339917457,102.60936832,127.05,127.0,0.44025324]
[1767339918557,0.05332307,127.04,127.0,0.44025324]
[1767339923057,93.1,127.07,127.0,0.44025324]
[1767339923857,93.1,127.07,127.01,0.38847915]
[1767339924062,93.1,127.07,127.03,0.43999332]
[1767339925062,0.05469347,127.06,127.03,0.43999332]
[1767339926763,93.08,127.09,127.03,0.43999332]
[1767339927262,94.62392765,127.09,127.03,0.43999332]
[1767339927665,93.08,127.09,127.03,0.43999332]
[1767339927864,0.0497491,127.07,127.03,0.43999332]
[1767339930059,93.08,127.09,127.03,0.43999332]
[1767339930967,0.05108985,127.07,127.03,0.43999332]
[1767339933868,6.94321767,127.1,127.04,0.39297474]
[1767339934767,0.04986982,127.08,127.06,0.0570621]
[1767339936469,1.54392765,127.11,127.06,0.45003684]
[1767339937374,0.05652498,127.1,127.06,0.45003684]
[1767339939177,1.60045263,127.1,127.06,0.45003684]
[1767339942272,1.54392765,127.09,127.06,0.45003684]
[1767339944277,0.05652498,127.1,127.06,0.45003684]
[1767339944470,1.54392765,127.09,127.06,0.45003684]
[1767339944978,0.05652498,127.1,127.06,0.45003684]
[1767339945175,110.2286,127.18,127.06,0.45003684]
[1767339945377,93.04,127.16,127.06,0.39297474]
[1767339945680,1.54392765,127.13,127.06,0.39297474]
[1767339946181,0.05778563,127.11,127.08,0.44605813]
[1767339957393,0.05778563,127.11,127.08,0.05308339]
[1767339957588,1.54392765,127.1,127.08,0.05308339]
[1767339957781,0.05778563,127.11,127.08,0.05308339]
[1767339957985,1.60171328,127.11,127.08,0.05308339]
[1767339959896,1.60171328,127.11,127.06,0.34421647]
[1767339960092,1.54392765,127.1,127.06,0.34421647]
[1767339960996,1.54392765,127.1,127.07,0.05130873]
[1767339962506,1.54392765,127.08,127.04,0.34421647]
[1767339963500,0.05701944,127.07,127.05,0.05889095]
[1767339963705,1.54392765,127.11,127.05,0.40310742]
[1767339964705,0.05514939,127.09,127.05,0.40310742]
[1767339979312,0.05514939,127.09,127.05,0.05889095]
[1767339979509,1.54392765,127.08,127.05,0.05889095]
[1767339979707,0.05514939,127.09,127.05,0.05889095]
[1767339979913,1.59907704,127.09,127.05,0.05889095]
[1767339982419,0.05514939,127.09,127.05,0.40310742]
[1767340023057,7.14584939,127.09,127.05,0.05889095]
[1767340023256,9.5572492,127.09,127.05,0.05889095]
[1767340024954,7.0912,127.08,127.05,0.05889095]
[1767340025168,7.0912,127.08,127.03,0.33434141]
[1767340026062,7.0912,127.08,127.04,0.05150769]
[1767340028663,7.0912,127.08,127.04,0.3858491]
[1767340044372,7.0918,127.07,127.04,0.3858491]
[1767340047874,7.14634939,127.09,127.04,0.3858491]
[1767340052676,8.69000047,127.09,127.04,0.3858491]
[1767340059579,7.14634939,127.09,127.04,0.3858491]
[1767340059779,8.69000047,127.09,127.04,0.3858491]
[1767340063881,7.14634939,127.09,127.04,0.3858491]
[1767340073389,8.69000047,127.09,127.04,0.3858491]
[1767340079799,7.14634939,127.09,127.04,0.3858491]
[1767340083602,8.63495108,127.08,127.04,0.05150769]
[1767340087105,1.54365108,127.08,127.04,0.05150769]
[1767340088907,0.05514939,127.09,127.04,0.40775091]
[1767340089208,1.54365108,127.12,127.05,0.35624322]
[1767340089907,8.63285108,127.12,127.06,7.0921]
[1767340090101,0.05820119,127.1,127.08,0.05941326]
[1767340129837,0.05820119,127.1,127.05,7.41499199]
[1767340130036,7.0896,127.11,127.05,7.41499199]
[1767340130837,0.0575804,127.09,127.07,0.05794206]
[1767340168369,7.0901,127.1,127.07,0.39267746]
[1767340169169,0.05618879,127.1,127.07,0.39267746]
[1767340179078,8.63152644,127.12,127.07,0.39267746]
[1767340179270,7.089,127.12,127.07,0.39267746]
[1767340180185,0.05962845,127.11,127.07,0.39267746]
[1767340181388,0.05962845,127.11,127.08,0.3347354]
[1767340185389,0.05962845,127.11,127.08,7.4259354]
[1767340185578,0.0007375,127.11,127.08,7.4259354]
[1767340193394,0.0007375,127.11,127.08,0.3347354]
[1767340200294,0.0007375,127.11,127.08,7.4258354]
[1767340218913,0.0007375,127.11,127.09,0.34436691]
[1767340226019,7.0876,127.15,127.09,7.43476691]
[1767340227012,7.0876,127.15,127.11,0.05142543]
[1767340227219,0.05934535,127.13,127.11,0.05142543]
[1767340227615,0.05934535,127.13,127.09,0.34436691]
[1767340228620,0.05934535,127.13,127.1,0.05851581]
[1767340228820,7.14774535,127.13,127.1,0.05851581]
[1767340243138,7.089,127.12,127.1,0.05851581]
[1767340253248,7.14774535,127.13,127.1,0.05851581]
[1767340261650,0.05934535,127.13,127.05,0.34316586]
[1767340261854,2.41023795,127.12,127.05,0.34316586]
[1767340262855,7.14216116,127.1,127.07,0.05781142]
[1767340266453,7.0894,127.12,127.07,0.40097728]
[1767340267564,0.05715052,127.11,127.07,0.40097728]
[1767340283276,0.05715052,127.11,127.08,0.34316586]
[1767340302697,0.05715052,127.11,127.09,0.34391823]
[1767340303203,8.63003732,127.15,127.1,0.34391823]
[1767340303497,1.54273732,127.14,127.1,0.34391823]
[1767340304001,0.05566005,127.13,127.11,0.05067633]
[1767340304299,0.05566005,127.13,127.11,0.39459456]
[1767340306597,0.05566005,127.13,127.11,0.05067633]
[1767340309497,7.0868,127.16,127.11,0.39459456]
[1767340310498,0.02295237,127.15,127.11,0.39459456]
[1767340312603,1.54273732,127.17,127.11,0.39459456]
[1767340312799,1.54273732,127.18,127.11,0.39459456]
[1767340313002,1.54273732,127.18,127.11,0.34391823]
[1767340313502,1.54273732,127.18,127.13,0.39578251]
[1767340313905,8.62833732,127.18,127.13,0.39578251]
[1767340315102,1.54273732,127.18,127.13,0.39578251]
[1767340315302,1.54273732,127.19,127.13,0.39578251]
[1767340317106,1.54273732,127.19,127.13,7.48408251]
[1767340317307,1.54273732,127.19,127.14,0.33155442]
[1767340318909,1.54273732,127.2,127.15,0.33155442]
[1767340319106,1.54273732,127.2,127.16,0.05116478]
[1767340319506,5.05339016,127.22,127.16,0.05116478]
[1767340319707,1.54273732,127.19,127.16,0.05116478]
[1767340320610,1.54273732,127.19,127.13,7.41985442]
[1767340320811,1.54273732,127.19,127.13,0.33155442]
[1767340321012,1.54273732,127.17,127.13,0.33155442]
[1767340321612,0.05116478,127.16,127.14,0.0501531]
[1767340329213,0.05116478,127.16,127.14,0.38170752]
[1767340329813,1.54273732,127.19,127.14,0.38170752]
[1767340330914,7.0851,127.19,127.14,0.38170752]
[1767340331812,8.62723732,127.2,127.14,0.38170752]
[1767340332215,7.0845,127.2,127.14,0.38170752]
[1767340334418,7.0851,127.19,127.14,0.0501531]
[1767340335318,1.54273732,127.18,127.14,0.0501531]
[1767340335525,1.54273732,127.18,127.15,0.05607288]
[1767340336812,7.0862,127.17,127.15,0.05607288]
[1767340337210,1.54273732,127.18,127.12,0.33155442]
[1767340338223,0.05607288,127.16,127.14,0.05274364]
[1767340349833,0.05607288,127.16,127.11,7.0894]
[1767340350235,0.05607288,127.16,127.11,7.4193047]
[1767340350742,0.05607288,127.16,127.12,0.05063513]
[1767340358142,0.05607288,127.16,127.12,0.38053983]
[1767340367159,7.14277288,127.16,127.12,0.38053983]
[1767340373161,0.05607288,127.16,127.12,0.38053983]
[1767340378966,0.05607288,127.16,127.12,7.46923983]
[1767340379158,0.05607288,127.16,127.12,0.38053983]
[1767340380768,7.14277288,127.16,127.12,0.38053983]
[1767340382769,0.05607288,127.16,127.12,0.05063513]
[1767340383766,7.0881,127.14,127.12,0.05063513]
[1767340385361,0.05607288,127.16,127.12,0.05063513]
[1767340385568,112.70810105,127.16,127.08,0.32194324]
[1767340385867,205.63202817,127.16,127.08,0.32194324]
[1767340386059,7.0891,127.12,127.08,0.32194324]
[1767340386462,7.0891,127.12,127.09,0.05392256]
[1767340386668,0.05294846,127.11,127.09,0.05392256]
[1767340388567,7.14254846,127.11,127.09,0.05392256]
[1767340388868,7.14254846,127.11,127.07,7.16927736]
[1767340389765,7.14254846,127.11,127.08,0.0596712]
[1767340391069,7.0901,127.1,127.04,0.32194324]
[1767340391271,2.40912817,127.11,127.04,0.32194324]
[1767340391462,95.40912817,127.11,127.04,0.32194324]
[1767340391663,7.0906,127.09,127.04,0.32194324]
[1767340392066,7.0906,127.09,127.05,0.05404019]
[1767340392272,0.05425695,127.08,127.05,0.05404019]